bitfinex/quotes_ETHUSD_20241024
["timestamp","ask_amount","ask_price","bid_price","bid_amount"]
[1729787609974,3.96259,2523.6,2523.0,9.23949782]
[1729787610179,3.96259,2523.6,2523.0,3.0]
[1729787610375,3.96285,2523.5,2523.0,3.07926041]
[1729787610720,3.96285,2523.5,2522.9,3.96358]
[1729787610721,3.96291,2523.4,2522.8,7.73352]
[1729787610954,0.7509,2523.3,2523.1,3.0]
[1729787611519,0.7509,2523.5,2523.1,6.96336]
[1729787611757,0.7509,2523.5,2523.2,4.04247032]
[1729787612064,0.774,2523.2,2523.1,1.10060807]
[1729787612355,0.774,2523.2,2522.9,3.0]
[1729787612761,0.774,2523.2,2522.8,3.96381]
[1729787612762,4.73723,2523.2,2522.5,0.8022]
[1729787612913,3.9638,2522.9,2522.5,0.8022]
[1729787613252,3.9638,2522.9,2522.3,3.96454]
[1729787613253,4.72898,2522.8,2522.3,3.96454]
[1729787613420,0.7651,2522.8,2522.4,4.360844]
[1729787613818,3.96407,2522.7,2522.2,3.96467]
[1729787614145,3.96407,2522.7,2522.2,4.04395612]
[1729787614346,0.7651,2522.8,2522.0,3.96507]
[1729787614347,3.96439,2522.5,2522.0,3.96507]
[1729787614517,3.31427822,2522.8,2521.9,4.76277]
[1729787614719,0.01,2523.2,2521.8,3.96539]
[1729787614720,3.96455,2522.4,2521.8,3.96539]
[1729787615020,7.92913,2522.4,2521.9,3.96519]
[1729787615337,7.92913,2522.4,2521.8,4.50369136]
[1729787615338,0.8247,2522.2,2521.8,4.50365136]
[1729787615547,0.8247,2522.2,2521.9,3.96518]
[1729787616323,0.8247,2522.2,2522.0,3.0]
[1729787616718,0.8247,2522.2,2521.9,3.0]
[1729787616951,0.8247,2522.2,2521.9,3.758292]
[1729787617154,0.8247,2522.2,2521.9,7.723472]
[1729787617363,0.8247,2522.2,2521.9,3.0]
[1729787617562,0.8247,2522.2,2521.8,3.0]
[1729787617767,3.96495,2522.1,2521.6,0.62002363]
[1729787617963,3.96495,2522.1,2521.7,3.0]
[1729787618117,4.7895,2522.2,2521.7,6.96557]
[1729787618568,0.8247,2522.2,2521.9,3.0]
[1729787618734,0.8247,2522.2,2521.9,6.96526]
[1729787619057,0.8247,2522.2,2521.9,5.058333]
[1729787619263,3.96414,2522.7,2522.1,3.96494]
[1729787619264,0.7857,2522.6,2522.1,3.96494]
[1729787619432,0.7857,2522.6,2522.1,3.96487]
[1729787619633,0.7857,2522.6,2522.3,3.96449]
[1729787619836,0.7857,2522.9,2522.6,3.96415]
[1729787620164,0.7857,2522.9,2522.5,3.0]
[1729787620339,0.7857,2522.9,2522.5,6.96431]
[1729787620661,3.96334,2523.2,2522.7,3.96392]
[1729787621660,3.96334,2523.2,2522.5,3.0]
[1729787621661,3.96344,2523.1,2522.6,3.96414]
[1729787622184,3.96344,2523.1,2522.7,3.96399]
[1729787622557,4.09997822,2523.3,2522.5,6.96417]
[1729787622741,3.96362,2523.0,2522.5,7.77958486]
[1729787623093,7.27805822,2522.9,2522.4,3.0]
[1729787623254,7.27840822,2522.7,2522.1,3.0]
[1729787623461,11.24253822,2522.7,2522.3,3.0]
[1729787623858,3.96419,2522.6,2522.3,3.0]
[1729787624083,3.96419,2522.6,2522.1,6.96494]
[1729787624247,3.96419,2522.6,2522.1,8.057934]
[1729787624987,3.96413,2522.7,2522.2,3.96476]
[1729787625145,7.92828,2522.7,2522.2,3.96476]
[1729787625342,3.96413,2522.7,2522.2,7.92947]
[1729787625989,7.92826,2522.7,2522.2,3.96471]
[1729787626193,3.96413,2522.7,2522.2,3.96471]
[1729787626482,3.96413,2522.7,2522.2,4.7704704]
[1729787626847,3.96413,2522.7,2522.3,3.96461]
[1729787627875,0.7857,2522.8,2522.3,3.96461]
[1729787628187,0.7857,2522.8,2522.5,3.96431]
[1729787628694,0.7547,2523.0,2522.5,3.96418]
[1729787628861,3.9637,2522.9,2522.5,3.96418]
[1729787629186,3.9637,2522.9,2522.5,4.84164822]
[1729787630282,3.96387,2522.8,2522.5,0.87746822]
[1729787630603,3.9637,2522.9,2522.5,4.84177822]
[1729787631308,0.7547,2523.0,2522.6,3.96409]
[1729787631541,4.71824,2523.0,2522.6,1.18850804]
[1729787631800,4.71824,2523.0,2522.5,3.96423]
[1729787632008,4.71824,2523.0,2522.6,3.96413]
[1729787632562,0.7547,2523.0,2522.6,3.96413]
[1729787632767,0.8193,2523.3,2522.9,3.96361]
[1729787633074,0.8193,2523.3,2523.0,4.359861]
[1729787633273,4.78213,2523.5,2523.0,4.359861]
[1729787634372,3.96292,2523.4,2523.0,4.359861]
[1729787634813,0.8193,2523.5,2523.1,0.07926612]
[1729787634994,0.8193,2523.5,2523.0,0.396361]
[1729787635303,4.25943073,2524.3,2523.0,0.396361]
[1729787635304,0.8101,2523.7,2523.4,3.9629]
[1729787635469,0.8101,2523.7,2523.4,8.322]
[1729787635680,0.8101,2523.7,2523.4,0.39629]
[1729787635869,0.8101,2523.7,2523.3,3.96305]
[1729787637082,4.77262,2523.7,2523.2,3.96321]
[1729787637481,3.96262,2523.6,2523.2,3.96321]
[1729787637693,4.77256,2523.7,2523.2,3.9631]
[1729787637909,3.96263,2523.6,2523.1,3.0]
[1729787638208,3.9622,2523.9,2523.4,3.9629]
[1729787638425,4.77587,2524.0,2523.5,4.04199286]
[1729787638580,4.77587,2524.0,2523.5,3.96274]
[1729787638781,4.77587,2524.0,2523.5,4.832048]
[1729787639084,0.8139,2524.0,2523.5,4.831978]
[1729787639289,4.77594,2524.0,2523.5,4.831978]
[1729787639695,0.8139,2524.0,2523.5,0.869308]
[1729787639908,3.96221,2523.9,2523.5,0.869308]
[1729787640074,3.96228,2523.8,2523.5,0.869308]
[1729787640396,3.96228,2523.8,2523.4,3.96289]
[1729787641528,3.96245,2523.7,2523.3,3.0]
[1729787641688,4.77655,2523.6,2523.2,3.0]
[1729787642079,3.96282,2523.5,2523.1,3.7674]
[1729787642276,0.8139,2523.6,2523.1,0.7674]
[1729787642610,3.96278,2523.5,2523.1,3.0]
[1729787642806,3.96278,2523.5,2523.1,6.96336]
[1729787643373,4.77651,2523.6,2523.1,6.96336]
[1729787643577,0.8139,2523.6,2523.2,3.96319]
[1729787644014,0.8139,2523.6,2523.1,8.132789]
[1729787644015,4.7766,2523.6,2523.1,8.132769]
[1729787644333,3.96288,2523.5,2523.0,6.96353]
[1729787644476,7.92571,2523.5,2523.0,6.96353]
[1729787644698,0.8052,2523.8,2523.1,0.07925954]
[1729787644900,0.8052,2523.8,2523.2,3.96306]
[1729787644901,3.96261,2523.6,2523.2,3.96306]
[1729787645129,4.76761,2523.8,2523.2,7.92621]
[1729787645517,0.8052,2523.8,2523.3,3.96306]
[1729787645720,0.8052,2523.8,2523.2,5.055681]
[1729787645936,3.96274,2523.6,2523.2,3.0]
[1729787646314,3.96266,2523.6,2523.2,3.0]
[1729787646909,3.96281,2523.5,2523.2,3.0]
[1729787647336,3.96265,2523.6,2523.2,3.0]
[1729787647544,3.96282,2523.5,2523.2,3.0]
[1729787648101,7.92565,2523.5,2523.2,3.0]
[1729787648336,3.96282,2523.5,2523.2,3.0]
[1729787649502,3.96256,2523.7,2522.9,3.7674]
[1729787649503,3.9625,2523.7,2522.9,3.7674]
[1729787649710,4.76754,2523.8,2523.4,3.96283]
[1729787650015,4.76754,2523.8,2523.3,7.92604]
[1729787650235,4.76754,2523.8,2523.3,3.96298]
[1729787650434,0.8052,2523.8,2523.4,3.9629]
[1729787650741,4.72578,2524.0,2523.4,0.804]
[1729787650963,3.96212,2523.9,2523.5,3.96267]
[1729787651647,4.72579,2524.0,2523.5,3.96275]
[1729787651807,4.72579,2524.0,2523.5,4.9053408]
[1729787652009,3.96161,2524.3,2523.6,0.07925043]
[1729787652227,0.7638,2524.3,2523.7,3.96229]
[1729787652424,3.96187,2524.1,2523.7,3.96229]
[1729787653153,3.96167,2524.2,2523.8,3.96227]
[1729787653456,4.72543,2524.3,2523.7,3.96229]
[1729787653617,0.7638,2524.3,2523.9,3.96211]
[1729787653813,3.96141,2524.4,2524.0,3.96195]
[1729787654259,4.7654,2524.5,2524.0,3.96195]
[1729787654955,3.9615,2524.3,2523.9,3.96211]
[1729787655252,4.76594,2524.1,2523.3,0.7922]
[1729787655451,3.96203,2524.0,2523.5,6.96264]
[1729787655949,3.96203,2524.0,2523.6,3.9625]
[1729787656468,0.8041,2524.1,2523.7,3.96232]
[1729787656761,0.8041,2524.1,2523.6,1.092514]
[1729787656924,3.96205,2524.0,2523.5,3.96268]
[1729787657114,3.96216,2523.9,2523.5,3.96268]
[1729787657320,3.96216,2523.9,2523.3,4.75512]
[1729787657321,3.96218,2523.9,2523.4,3.96282]
[1729787657562,3.96218,2523.9,2523.3,4.75512]
[1729787657857,3.96266,2523.6,2523.1,8.71392]
[1729787658061,7.92534,2523.6,2523.2,3.0]
[1729787658358,3.96266,2523.6,2523.2,3.0]
[1729787658561,3.96275,2523.5,2523.2,3.0]
[1729787658763,0.8184,2523.7,2523.2,3.0]
[1729787659063,3.96267,2523.6,2523.2,3.0]
[1729787659365,3.96297,2523.4,2522.9,3.96357]
[1729787659570,3.96286,2523.5,2522.9,3.96357]
[1729787659791,8.74354,2523.7,2523.1,3.96326]
[1729787659933,3.96262,2523.6,2523.1,3.96326]
[1729787660270,3.96262,2523.6,2523.1,4.04251956]
[1729787660470,3.96282,2523.5,2523.0,4.437207]
[1729787661025,0.8184,2523.7,2522.8,7.73772]
[1729787661026,3.96292,2523.4,2522.8,7.73772]
[1729787661232,0.7802,2523.3,2522.9,3.96369]
[1729787661463,0.7802,2523.3,2522.9,7.92729]
[1729787661644,0.7802,2523.3,2523.0,3.96352]
[1729787661843,3.96292,2523.4,2523.0,3.96352]
[1729787662577,0.793,2523.5,2523.1,3.96328]
[1729787663141,4.75575,2523.5,2523.1,3.96328]
[1729787663768,0.793,2523.5,2523.0,5.133602]
[1729787664064,4.75581,2523.5,2523.0,5.133602]
[1729787664431,4.75581,2523.5,2523.1,3.96337]
[1729787665268,4.75581,2523.5,2523.0,5.133512]
[1729787665686,3.9629,2523.4,2523.0,5.133512]
[1729787666676,3.96315,2523.3,2522.8,7.73764]
[1729787666843,3.96322,2523.2,2522.8,7.73764]
[1729787667037,3.9631,2523.3,2522.8,11.70139]
[1729787667245,3.9629,2523.4,2522.8,8.907779]
[1729787667450,3.9629,2523.4,2522.9,3.96362]
[1729787667675,3.96309,2523.3,2522.9,3.96362]
[1729787668688,3.96307,2523.3,2522.9,3.96362]
[1729787668870,0.793,2523.5,2522.9,3.96362]
[1729787669053,3.96303,2523.4,2522.9,5.58171438]
[1729787669248,3.96308,2523.3,2522.9,5.58171438]
[1729787669657,3.96322,2523.2,2522.8,7.73764]
[1729787669856,0.7825,2523.1,2522.4,0.7745]
[1729787670091,0.7825,2523.1,2522.2,0.7745]
[1729787670092,3.96387,2522.8,2522.2,0.7745]
[1729787670296,3.96408,2522.7,2522.2,5.14758448]
[1729787670495,3.96387,2522.8,2522.3,3.96454]
[1729787671200,3.9638,2522.9,2522.4,3.96447]
[1729787671986,3.96395,2522.8,2522.3,6.9646]
[1729787672204,3.96402,2522.7,2522.2,8.14768448]
[1729787672495,4.79253,2522.6,2522.2,1.18290448]
[1729787672665,0.8283,2522.6,2522.3,1.21126845]
[1729787672871,0.8283,2522.6,2522.3,4.21126845]
[1729787673289,4.79258,2522.6,2522.3,1.21126845]
[1729787673602,4.79258,2522.6,2522.2,4.18290448]
[1729787673603,3.96433,2522.5,2522.2,4.18290448]
[1729787673888,0.8283,2522.6,2522.2,4.18290448]
[1729787674051,4.79248,2522.6,2522.2,4.18290448]
[1729787674254,0.8283,2522.6,2522.2,8.14760448]
[1729787674555,3.96454,2522.4,2522.0,7.74298]
[1729787674766,4.79247,2522.6,2521.7,4.74346]
[1729787674970,4.79247,2522.6,2522.1,4.74277]
[1729787675197,4.76762,2522.9,2522.4,3.96447]
[1729787675385,4.76762,2522.9,2522.5,0.79291]
[1729787675981,3.96386,2522.8,2522.4,3.96447]
[1729787677297,3.96392,2522.8,2522.3,3.0]
[1729787677519,3.96392,2522.8,2522.4,3.96447]
[1729787677695,0.8039,2522.9,2522.4,3.96447]
[1729787677900,3.96387,2522.8,2522.5,0.696447]
[1729787678109,3.96387,2522.8,2522.4,3.96438]
[1729787679021,0.8039,2522.9,2522.5,4.7328]
[1729787679183,3.96354,2523.0,2522.5,4.73273]
[1729787679385,3.96354,2523.0,2522.6,3.96415]
[1729787679580,0.8083,2523.1,2522.6,3.96415]
[1729787679778,0.8083,2523.1,2522.6,4.833838]
[1729787680282,0.8083,2523.1,2522.7,3.96394]
[1729787680518,3.96338,2523.1,2522.7,3.96394]
[1729787680987,4.79588,2523.5,2523.0,3.96338]
[1729787681189,4.79588,2523.5,2523.1,3.9633]
[1729787681391,4.79587,2523.5,2523.0,3.96338]
[1729787681589,3.96302,2523.4,2523.0,0.873831]
[1729787681778,3.96307,2523.3,2522.9,4.77487]
[1729787682342,0.8112,2523.3,2522.5,0.8086]
[1729787682545,3.96275,2523.5,2522.5,3.0]
[1729787682546,3.96378,2522.9,2522.5,3.0]
[1729787683348,3.96386,2522.8,2522.5,3.0]
[1729787683546,3.9637,2522.9,2522.5,3.0]
[1729787683845,3.96386,2522.8,2522.5,3.0]
[1729787684344,3.9637,2522.9,2522.5,3.0]
[1729787685946,3.9637,2522.9,2522.4,3.96444]
[1729787686104,3.96385,2522.8,2522.5,3.0]
[1729787687318,3.96385,2522.8,2522.3,4.78711]
[1729787688257,3.96385,2522.8,2522.3,7.78704]
[1729787688549,3.96385,2522.8,2522.4,3.96441]
[1729787688730,3.96385,2522.8,2522.3,7.78712]
[1729787688731,7.92783,2522.8,2522.3,7.78712]
[1729787688936,3.96385,2522.8,2522.3,8.962298]
[1729787689132,3.96385,2522.8,2522.4,3.96447]
[1729787689710,3.96367,2523.0,2522.3,4.997678]
[1729787689711,3.964,2522.7,2522.3,8.962298]
[1729787689934,3.96323,2523.2,2522.2,3.0]
[1729787689935,3.96435,2522.5,2522.2,3.0]
[1729787690477,3.96454,2522.4,2522.0,3.0]
[1729787690660,3.96454,2522.4,2521.9,4.72239]
[1729787690661,3.96469,2522.3,2521.9,4.72239]
[1729787690969,4.77081,2522.2,2521.7,9.30848805]
[1729787691172,4.77081,2522.2,2521.8,3.96539]
[1729787691579,3.96464,2522.3,2521.9,3.96522]
[1729787691872,3.96464,2522.3,2522.0,3.0]
[1729787692169,3.96464,2522.3,2521.9,3.96522]
[1729787692170,3.96506,2522.1,2521.7,1.37757805]
[1729787692369,3.96506,2522.1,2521.8,3.0]
[1729787692946,3.9648,2522.2,2521.8,3.0]
[1729787693879,3.96463,2522.3,2521.9,3.96521]
[1729787694170,4.77053,2522.4,2521.9,3.96521]
[1729787694376,3.96434,2522.5,2522.0,3.96504]
[1729787694537,3.96379,2522.9,2522.0,3.96504]
[1729787694538,0.7877,2522.8,2522.4,3.96439]
[1729787694738,3.96376,2522.9,2522.5,3.9643]
[1729787694974,0.7877,2523.0,2522.6,3.96409]
[1729787695182,0.7877,2523.0,2522.6,4.74529]
[1729787695389,3.96338,2523.1,2522.6,4.74528]
[1729787695674,3.96354,2523.0,2522.6,0.7812]
[1729787697135,3.96374,2522.9,2522.6,0.7812]
[1729787697838,3.96355,2523.0,2522.6,4.74535]
[1729787698039,3.96355,2523.0,2522.6,0.7812]
[1729787698376,3.96378,2522.9,2522.5,3.0]
[1729787698676,3.96378,2522.9,2522.5,5.439676]
[1729787698980,3.96378,2522.9,2522.4,4.78939]
[1729787699340,3.96407,2522.7,2522.4,0.825]
[1729787699647,7.92761,2522.9,2522.4,4.78945]
[1729787699973,3.96353,2523.0,2522.4,4.78947]
[1729787700184,3.96385,2522.8,2522.4,0.825]
[1729787700400,3.96371,2522.9,2522.4,5.964806]
[1729787700674,0.833,2523.1,2522.6,3.96408]
[1729787700675,4.7964,2523.1,2522.6,3.96408]
[1729787700838,0.833,2523.1,2522.4,2.000436]
[1729787701038,0.833,2523.1,2522.4,0.825]
[1729787701238,3.96409,2522.7,2522.3,3.0]
[1729787701550,4.79643,2523.1,2522.3,3.0]
[1729787701551,3.96379,2522.9,2522.3,3.0]
[1729787701853,7.92814,2522.7,2522.3,3.0]
[1729787702189,3.96433,2522.5,2522.2,0.825]
[1729787702661,3.96418,2522.6,2522.2,0.825]
[1729787702843,3.96409,2522.7,2522.3,3.0]
[1729787703040,3.96378,2522.9,2522.3,3.0]
[1729787703041,7.92761,2522.9,2522.3,6.96456]
[1729787703679,3.96378,2522.9,2522.3,8.139993]
[1729787703879,3.96338,2523.1,2522.7,0.7583]
[1729787704243,3.96379,2522.9,2522.5,0.7583]
[1729787704438,3.96418,2522.6,2522.0,3.9651]
[1729787704643,3.96441,2522.5,2522.1,3.0]
[1729787705042,3.96441,2522.5,2522.1,3.7759]
[1729787705673,3.96454,2522.4,2522.1,0.7759]
[1729787705875,3.96443,2522.5,2522.1,0.7759]
[1729787707189,3.96443,2522.5,2522.1,4.74084]
[1729787707346,3.96426,2522.6,2522.1,5.9886611]
[1729787707543,3.96456,2522.4,2522.1,2.0237211]
[1729787707852,0.7534,2522.8,2522.1,0.7759]
[1729787708054,3.96432,2522.5,2522.1,0.7759]
[1729787708250,3.96432,2522.5,2522.1,4.74084]
[1729787708651,3.96414,2522.7,2522.2,3.96466]
[1729787709173,3.96375,2522.9,2522.4,3.96441]
[1729787709352,0.8288,2523.0,2522.2,1.17055]
[1729787709567,3.96465,2522.3,2521.9,0.8094]
[1729787709894,3.96486,2522.2,2521.9,0.8094]
[1729787710046,3.96499,2522.1,2521.9,0.8094]
[1729787710588,3.9646,2522.4,2521.9,0.8094]
[1729787710744,3.96482,2522.2,2521.9,0.8094]
[1729787711560,3.96482,2522.2,2521.8,3.0]
[1729787711757,7.92972,2522.2,2521.8,3.0]
[1729787712186,3.96549,2521.8,2521.5,0.7787]
[1729787712408,3.96591,2521.5,2521.3,0.62051834]
[1729787712606,3.96605,2521.4,2520.9,0.7787]
[1729787712815,3.96644,2521.2,2520.7,4.74572]
[1729787713095,3.96655,2521.1,2520.7,0.7787]
[1729787713255,3.96643,2521.2,2520.7,4.74581]
[1729787713655,6.96538,2521.9,2520.7,4.74581]
[1729787713656,2.48670308,2522.2,2521.9,4.75956]
[1729787713906,3.96472,2522.3,2521.8,3.96541]
[1729787714052,3.96472,2522.3,2521.7,0.8]
[1729787714259,3.9648,2522.2,2521.7,0.8]
[1729787714770,3.9651,2522.1,2521.7,0.8]
[1729787715068,3.9651,2522.1,2521.5,3.0]
[1729787715069,3.9651,2522.1,2521.6,3.96573]
[1729787715271,3.96474,2522.3,2521.6,3.96566]
[1729787715472,4.441424,2522.3,2521.7,3.9655]
[1729787715666,4.441424,2522.3,2521.8,3.9654]
[1729787715870,4.7666,2522.4,2521.8,3.9654]
[1729787716057,4.7666,2522.4,2521.8,7.2749448]
[1729787716267,3.9647,2522.3,2521.8,7.2749448]
[1729787716499,3.9647,2522.3,2521.8,3.9654]
[1729787716806,7.92944,2522.3,2521.8,3.9654]
[1729787717367,3.9647,2522.3,2521.8,3.9654]
[1729787718093,3.9647,2522.3,2521.8,3.96533]
[1729787718465,7.92944,2522.3,2521.8,3.96533]
[1729787718704,4.837854,2522.3,2521.6,3.3095448]
[1729787719006,3.96487,2522.2,2521.7,3.96555]
[1729787720023,3.96479,2522.2,2521.7,3.96555]
[1729787720322,3.96502,2522.1,2521.7,3.96555]
[1729787720527,8.73133,2522.4,2521.8,3.96531]
[1729787720847,3.0,2522.9,2522.4,7.92876]
[1729787720848,3.96371,2522.9,2522.4,7.92876]
[1729787721141,3.96371,2522.9,2522.4,3.96447]
[1729787721284,3.96371,2522.9,2522.3,4.77062]
[1729787721484,3.96371,2522.9,2522.4,3.9644]
[1729787721720,3.96371,2522.9,2522.3,4.77063]
[1729787721933,3.96371,2522.9,2522.3,2.01048648]
[1729787722087,0.7746,2523.0,2522.6,3.96406]
[1729787722282,7.92692,2523.1,2522.6,3.96406]
[1729787722590,3.96345,2523.1,2522.4,7.2739048]
[1729787722785,3.96362,2523.0,2522.5,3.96422]
[1729787723128,3.96362,2523.0,2522.5,3.96431]
[1729787723282,3.96362,2523.0,2522.5,5.16873148]
[1729787723665,3.96362,2523.0,2522.6,3.96413]
[1729787723786,3.96362,2523.0,2522.5,5.16873148]
[1729787724095,3.96362,2523.0,2522.5,5.16864148]
[1729787724726,3.96378,2522.9,2522.5,1.20442148]
[1729787725016,3.96378,2522.9,2522.3,4.77053]
[1729787725187,3.96378,2522.9,2522.5,3.9643]
[1729787725980,7.92757,2522.9,2522.4,3.96445]
[1729787726184,3.96378,2522.9,2522.5,3.96429]
[1729787727035,3.96378,2522.9,2522.4,3.96439]
[1729787727187,3.96378,2522.9,2522.4,8.73677348]
[1729787727529,3.96378,2522.9,2522.4,8.73678348]
[1729787727742,3.96378,2522.9,2522.4,0.80799348]
[1729787727886,3.96459,2522.4,2522.1,3.0]
[1729787728296,3.96459,2522.4,2522.0,3.96509]
[1729787728714,3.96454,2522.4,2521.9,6.96522]
[1729787729019,3.96454,2522.4,2522.0,3.96509]
[1729787730244,3.96454,2522.4,2521.9,4.60896543]
[1729787730245,3.964,2522.7,2521.8,0.822]
[1729787730393,3.96439,2522.5,2522.0,3.96501]
[1729787730594,4.76418,2522.6,2522.0,3.96501]
[1729787730595,0.8,2522.6,2522.2,3.9647]
[1729787730810,4.76417,2522.6,2522.0,5.130591]
[1729787731000,4.76417,2522.6,2522.2,3.96478]
[1729787731672,4.76417,2522.6,2522.1,3.96494]
[1729787731865,0.8,2522.6,2522.2,3.9647]
[1729787732162,3.96395,2522.8,2522.3,3.9645]
[1729787732163,0.08925528,2522.5,2522.3,3.9645]
[1729787732526,3.96392,2522.8,2522.3,3.9645]
[1729787732723,0.08953122,2522.4,2522.3,3.9645]
[1729787732931,3.96403,2522.7,2522.2,3.96479]
[1729787733160,0.08612817,2522.4,2522.2,3.96479]
[1729787733362,3.96403,2522.7,2522.2,4.93283434]
[1729787733561,0.08550614,2522.3,2522.2,4.93283434]
[1729787733764,3.96403,2522.7,2522.2,4.93283434]
[1729787733765,3.96407,2522.7,2522.2,4.93283434]
[1729787733930,3.96392,2522.8,2522.1,8.51496238]
[1729787733931,0.08577588,2522.3,2522.1,5.20543758]
[1729787734127,3.96417,2522.6,2522.0,1.165601]
[1729787734128,3.96423,2522.6,2522.0,3.7691]
[1729787734370,0.08579614,2522.2,2522.1,3.96494]
[1729787734663,0.08579614,2522.2,2522.1,10.35369166]
[1729787734664,0.08590874,2522.2,2522.1,10.35369166]
[1729787734873,3.96418,2522.6,2522.1,3.0]
[1729787735072,0.08590874,2522.2,2522.1,6.96493]
[1729787735270,3.96418,2522.6,2522.1,6.96493]
[1729787735456,0.08590874,2522.2,2522.1,6.96493]
[1729787735660,3.96418,2522.6,2522.1,6.96493]
[1729787735975,0.08587913,2522.2,2522.1,6.96487]
[1729787736130,3.96434,2522.5,2522.1,6.96487]
[1729787736339,0.08584952,2522.2,2522.1,6.96487]
[1729787736584,3.96434,2522.5,2522.1,6.96487]
[1729787736746,0.08587913,2522.2,2522.1,6.96487]
[1729787737070,0.08587913,2522.2,2522.1,8.38881948]
[1729787738572,0.08587913,2522.2,2522.1,9.21851948]
[1729787739183,0.17153982,2522.2,2522.1,9.21851948]
[1729787740422,0.17153982,2522.2,2522.1,4.42394948]
[1729787740631,0.17153982,2522.2,2521.6,1.61195382]
[1729787740632,0.87077913,2522.2,2521.6,1.61195382]
[1729787740783,3.96518,2522.0,2521.6,0.7825]
[1729787740984,0.08527892,2521.9,2521.6,0.7825]
[1729787741184,0.08527892,2521.9,2521.7,3.96555]
[1729787741481,0.08587913,2522.2,2521.7,0.48273569]
[1729787741720,0.08587913,2522.2,2522.0,3.96498]
[1729787741927,0.08587913,2522.2,2521.8,0.0792965]
[1729787741928,0.08587913,2522.2,2521.8,3.96529]
[1729787742226,0.08587913,2522.2,2521.9,3.96526]
[1729787742894,0.08571644,2522.1,2521.9,3.96526]
[1729787743297,0.08571644,2522.1,2521.8,3.96529]
[1729787744607,0.08571644,2522.1,2521.8,7.93062]
[1729787744914,0.08571644,2522.1,2521.8,5.18487557]
[1729787746507,0.08571644,2522.1,2521.9,3.96522]
[1729787746727,0.08571644,2522.1,2521.8,5.18487557]
[1729787746934,0.08499877,2522.1,2521.6,7.74814]
[1729787747096,4.05000877,2522.1,2521.7,3.96556]
[1729787747292,4.05000877,2522.1,2521.6,7.74822]
[1729787747610,3.96517,2522.0,2521.6,6.96572]
[1729787747810,3.96517,2522.0,2521.5,6.96586]
[1729787747811,4.04848481,2521.9,2521.5,6.96586]
[1729787748018,4.04848481,2521.9,2521.5,8.19936266]
[1729787748225,0.08321481,2521.9,2521.6,3.96572]
[1729787748392,0.08321481,2521.9,2521.6,3.0]
[1729787749240,0.08321481,2521.9,2521.3,0.62052655]
[1729787749241,3.96542,2521.8,2521.3,0.62052655]
[1729787749389,0.0830098,2521.7,2521.5,3.96576]
[1729787749595,8.7488,2522.0,2521.5,3.96576]
[1729787749797,0.08324442,2521.9,2521.3,4.58665655]
[1729787750104,3.96565,2521.7,2521.3,0.62052655]
[1729787750306,3.96557,2521.8,2521.3,0.62052655]
[1729787750504,0.08289248,2521.6,2521.4,3.96595]
[1729787750831,7.93074,2521.9,2521.4,3.96595]
[1729787751138,0.08318633,2521.8,2521.5,3.96588]
[1729787751297,0.08318633,2521.8,2521.7,0.1496]
[1729787752600,0.8184,2522.0,2521.7,0.1496]
[1729787752934,3.96542,2521.8,2521.7,0.1496]
[1729787753297,4.04822544,2521.8,2521.7,0.1496]
[1729787754332,4.86162544,2521.8,2521.7,0.1496]
[1729787762620,3.96634,2521.3,2520.8,4.66577]
[1729787762875,3.96662,2521.1,2520.8,0.7993]
[1729787763162,3.96678,2521.0,2520.8,0.7993]
[1729787763362,4.04870289,2521.0,2520.8,0.7993]
[1729787763939,4.04870289,2521.0,2520.6,4.76318]
[1729787764674,3.96686,2520.9,2520.6,0.7959]
[1729787764839,3.96686,2520.9,2520.5,3.0]
[1729787765040,4.04824849,2520.8,2520.5,3.0]
[1729787765668,4.82364849,2520.8,2520.5,3.0]
[1729787765868,4.82375849,2520.8,2520.5,3.0]
[1729787766078,0.85665849,2520.8,2520.4,0.7959]
[1729787766249,3.96721,2520.7,2520.4,0.7959]
[1729787766577,0.08099117,2520.6,2520.4,4.76352]
[1729787766869,4.74241,2520.8,2520.4,4.76352]
[1729787767068,0.08093302,2520.5,2520.4,4.76352]
[1729787767273,4.74241,2520.8,2520.4,4.76352]
[1729787767472,0.7754,2521.0,2520.4,4.76337]
[1729787767652,3.96661,2521.1,2520.6,3.96718]
[1729787767852,3.96668,2521.0,2520.6,3.96722]
[1729787768048,3.96655,2521.1,2520.7,3.96714]
[1729787768264,4.837395,2521.1,2520.6,3.96722]
[1729787768639,3.96669,2521.0,2520.6,3.96722]
[1729787768847,3.96669,2521.0,2520.4,5.936522]
[1729787769072,3.967,2520.8,2520.4,0.7959]
[1729787769257,3.967,2520.8,2520.3,6.96769]
[1729787769258,0.796,2520.8,2520.3,3.0]
[1729787769480,0.796,2520.8,2519.9,4.58915438]
[1729787769481,3.96765,2520.4,2519.9,5.39815438]
[1729787769676,4.76301,2520.8,2520.1,3.96797]
[1729787769677,3.96744,2520.6,2520.1,3.96797]
[1729787769992,3.96744,2520.6,2519.9,1.42985438]
[1729787769993,0.08005627,2520.3,2519.9,1.42985438]
[1729787770154,3.96737,2520.6,2520.1,7.93604]
[1729787770354,0.08012668,2520.2,2520.1,3.96802]
[1729787770557,3.9673,2520.7,2520.2,3.96785]
[1729787770775,3.9673,2520.7,2520.3,3.96776]
[1729787771584,0.796,2520.8,2520.5,3.96743]
[1729787771747,0.758,2521.0,2520.4,4.75621]
[1729787771951,4.72469,2521.0,2520.6,3.9673]
[1729787772365,4.72469,2521.0,2520.5,3.96738]